[Event "Early-Titled-Tuesday-Blitz-February-06-2024"]
[Site "Chess.com"]
[Date "2024.02.06"]
[Round "5"]
[White "Elegance_Riks"]
[Black "Ural_bogatyr"]
[Result "1-0"]
[WhiteElo "2766"]
[BlackElo "2546"]
[TimeControl "180+1"]
[EndTime "8:54:46 PST"]
[Termination "Elegance_Riks won on time"]

1. Nf3 {[%clk 0:03:00.9]} 1... d5 {[%clk 0:01:17]} 2. c4 {[%clk 0:03:00.2]} 2...
e6 {[%clk 0:01:16.7]} 3. g3 {[%clk 0:03:00.1]} 3... Nf6 {[%clk 0:01:17]} 4. Bg2
{[%clk 0:03:00.5]} 4... Be7 {[%clk 0:01:17.1]} 5. O-O {[%clk 0:02:59.6]} 5...
O-O {[%clk 0:01:17.6]} 6. b3 {[%clk 0:02:59.9]} 6... c5 {[%clk 0:01:16.5]} 7.
cxd5 {[%clk 0:02:57.9]} 7... exd5 {[%clk 0:01:16.2]} 8. d4 {[%clk 0:02:57.3]}
8... Nc6 {[%clk 0:01:14.6]} 9. Bb2 {[%clk 0:02:56.1]} 9... Bf5 {[%clk
0:01:10.9]} 10. Nc3 {[%clk 0:02:54.8]} 10... h6 {[%clk 0:01:06.3]} 11. Rc1
{[%clk 0:02:49.1]} 11... Rc8 {[%clk 0:01:03.8]} 12. dxc5 {[%clk 0:02:31.6]}
12... Bxc5 {[%clk 0:01:03.2]} 13. Na4 {[%clk 0:02:28.5]} 13... Be7 {[%clk
0:00:57.2]} 14. Nd4 {[%clk 0:02:27.3]} 14... Be4 {[%clk 0:00:51.4]} 15. Nxc6
{[%clk 0:02:23.9]} 15... bxc6 {[%clk 0:00:48.7]} 16. Bxf6 {[%clk 0:02:23.6]}
16... Bxf6 {[%clk 0:00:43.9]} 17. Bxe4 {[%clk 0:02:23.7]} 17... dxe4 {[%clk
0:00:44.8]} 18. Qxd8 {[%clk 0:02:22.8]} 18... Rfxd8 {[%clk 0:00:45.7]} 19. Rfd1
{[%clk 0:02:23.1]} 19... e3 {[%clk 0:00:38.6]} 20. f4 {[%clk 0:02:16.9]} 20...
Bd4 {[%clk 0:00:34.4]} 21. Kg2 {[%clk 0:02:14.3]} 21... Kf8 {[%clk 0:00:30.1]}
22. Kf3 {[%clk 0:02:14.2]} 22... Ke7 {[%clk 0:00:29.7]} 23. Rc4 {[%clk
0:02:08.3]} 23... c5 {[%clk 0:00:28.7]} 24. b4 {[%clk 0:02:03.6]} 24... Bf6
{[%clk 0:00:24.2]} 25. Rxd8 {[%clk 0:01:55.2]} 25... Rxd8 {[%clk 0:00:25.1]} 26.
Nxc5 {[%clk 0:01:48.1]} 26... Rd2 {[%clk 0:00:23.1]} 27. a4 {[%clk 0:01:45.7]}
27... g5 {[%clk 0:00:19]} 28. h3 {[%clk 0:01:43.2]} 28... Ra2 {[%clk 0:00:18.7]}
29. b5 {[%clk 0:01:42]} 29... gxf4 {[%clk 0:00:15.4]} 30. gxf4 {[%clk
0:01:41.8]} 30... Kd6 {[%clk 0:00:14.1]} 31. Ne4+ {[%clk 0:01:40.2]} 31... Kd5
{[%clk 0:00:13.3]} 32. Rc7 {[%clk 0:01:39.8]} 32... Bd4 {[%clk 0:00:12.2]} 33.
Rd7+ {[%clk 0:01:39.9]} 33... Kc4 {[%clk 0:00:11.5]} 34. Nd6+ {[%clk 0:01:40.4]}
34... Kd5 {[%clk 0:00:10.2]} 35. Nxf7+ {[%clk 0:01:40]} 35... Kc5 {[%clk
0:00:09.3]} 36. Rxa7 {[%clk 0:01:35.3]} 36... Ra1 {[%clk 0:00:08.2]} 37. Rc7+
{[%clk 0:01:29.6]} 37... Kd5 {[%clk 0:00:07.5]} 38. Rd7+ {[%clk 0:01:27.9]}
38... Kc5 {[%clk 0:00:06.1]} 39. Ke4 {[%clk 0:01:26.5]} 39... Bb2 {[%clk
0:00:04.8]} 40. Rd5+ {[%clk 0:01:24.4]} 40... Kb6 {[%clk 0:00:01.7]} 41. Rd6+
{[%clk 0:01:24.1]} 41... Kc5 {[%clk 0:00:02.1]} 42. Rc6+ {[%clk 0:01:24.4]}
42... Kb4 {[%clk 0:00:02.2]} 43. Nd6 {[%clk 0:01:23.3]} 43... Rxa4 {[%clk
0:00:01.2]} 44. Rc4+ {[%clk 0:01:23.4]} 1-0

[Event "Early-Titled-Tuesday-Blitz-February-06-2024"]
[Site "Chess.com"]
[Date "2024.02.06"]
[Round "5"]
[White "stratacticos"]
[Black "FrenchMonster2002"]
[Result "0-1"]
[WhiteElo "2052"]
[BlackElo "2378"]
[TimeControl "180+1"]
[EndTime "8:54:47 PST"]
[Termination "FrenchMonster2002 won by resignation"]

1. e4 {[%clk 0:03:00.3]} 1... g6 {[%clk 0:02:54]} 2. d4 {[%clk 0:02:58.8]} 2...
Bg7 {[%clk 0:02:54.7]} 3. Nc3 {[%clk 0:02:57.2]} 3... a6 {[%clk 0:02:55]} 4. a4
{[%clk 0:02:56.1]} 4... d6 {[%clk 0:02:54.9]} 5. Be2 {[%clk 0:02:54.1]} 5... Nf6
{[%clk 0:02:45.4]} 6. Be3 {[%clk 0:02:52.1]} 6... O-O {[%clk 0:02:42.6]} 7. h3
{[%clk 0:02:50.8]} 7... Nc6 {[%clk 0:02:41.6]} 8. Qd2 {[%clk 0:02:49]} 8... e5
{[%clk 0:02:40.5]} 9. d5 {[%clk 0:02:48.1]} 9... Nd4 {[%clk 0:02:36.4]} 10. Bd1
{[%clk 0:02:45]} 10... c6 {[%clk 0:02:28.8]} 11. dxc6 {[%clk 0:02:39]} 11...
bxc6 {[%clk 0:02:27.1]} 12. Nge2 {[%clk 0:02:38.6]} 12... c5 {[%clk 0:02:22.4]}
13. Ng3 {[%clk 0:02:27.3]} 13... h5 {[%clk 0:02:17]} 14. Bg5 {[%clk 0:02:22.2]}
14... Bb7 {[%clk 0:02:07.1]} 15. f3 {[%clk 0:02:20.9]} 15... Qb6 {[%clk
0:02:04.3]} 16. Rb1 {[%clk 0:02:10.1]} 16... Nh7 {[%clk 0:02:01.3]} 17. Be3
{[%clk 0:02:07.7]} 17... h4 {[%clk 0:01:58.7]} 18. Nf1 {[%clk 0:02:03.1]} 18...
f5 {[%clk 0:01:37.7]} 19. exf5 {[%clk 0:01:50.7]} 19... gxf5 {[%clk 0:01:27.8]}
20. Bh6 {[%clk 0:01:50.3]} 20... Rae8 {[%clk 0:01:18]} 21. Bxg7 {[%clk
0:01:48.2]} 21... Kxg7 {[%clk 0:01:18.7]} 22. Ne3 {[%clk 0:01:41.2]} 22... e4
{[%clk 0:01:03.9]} 23. O-O {[%clk 0:01:33]} 23... exf3 {[%clk 0:01:03.6]} 24.
Bxf3 {[%clk 0:01:16.4]} 24... Bxf3 {[%clk 0:00:55.3]} 25. gxf3 {[%clk
0:01:15.4]} 25... Kh8 {[%clk 0:00:51.3]} 26. Ncd5 {[%clk 0:01:12.3]} 26... Qb7
{[%clk 0:00:50.7]} 27. c3 {[%clk 0:01:11.5]} 27... f4 {[%clk 0:00:34.5]} 28.
cxd4 {[%clk 0:01:08.1]} 28... fxe3 {[%clk 0:00:34.5]} 29. Nxe3 {[%clk 0:01:08]}
29... Rxf3 {[%clk 0:00:32.4]} 30. Rxf3 {[%clk 0:01:03.4]} 30... Qxf3 {[%clk
0:00:32.1]} 31. Ng2 {[%clk 0:00:58.8]} 31... Re2 {[%clk 0:00:29.6]} 0-1

[Event "Early-Titled-Tuesday-Blitz-February-06-2024"]
[Site "Chess.com"]
[Date "2024.02.06"]
[Round "5"]
[White "Arlo2024"]
[Black "rhungaski"]
[Result "0-1"]
[WhiteElo "2290"]
[BlackElo "2489"]
[TimeControl "180+1"]
[EndTime "8:54:49 PST"]
[Termination "rhungaski won by checkmate"]

1. e4 {[%clk 0:03:00.9]} 1... g6 {[%clk 0:02:59.6]} 2. d4 {[%clk 0:03:00.8]}
2... Bg7 {[%clk 0:03:00.1]} 3. Be3 {[%clk 0:03:00.7]} 3... d6 {[%clk 0:03:00.5]}
4. Nc3 {[%clk 0:02:59.6]} 4... a6 {[%clk 0:03:00.9]} 5. Qd2 {[%clk 0:02:59.6]}
5... b5 {[%clk 0:03:01]} 6. Bd3 {[%clk 0:02:59.6]} 6... Bb7 {[%clk 0:03:00]} 7.
Nf3 {[%clk 0:02:59.5]} 7... Nd7 {[%clk 0:03:00.4]} 8. O-O {[%clk 0:02:59]} 8...
Rc8 {[%clk 0:03:01]} 9. a4 {[%clk 0:02:57.6]} 9... b4 {[%clk 0:03:00.3]} 10. Ne2
{[%clk 0:02:58.4]} 10... a5 {[%clk 0:02:46.5]} 11. Ng3 {[%clk 0:02:56.3]} 11...
c5 {[%clk 0:02:45.3]} 12. c3 {[%clk 0:02:56.6]} 12... c4 {[%clk 0:02:07.7]} 13.
Bc2 {[%clk 0:02:34.1]} 13... b3 {[%clk 0:02:07.8]} 14. Bd1 {[%clk 0:02:33]}
14... Ngf6 {[%clk 0:01:45.7]} 15. e5 {[%clk 0:02:30.9]} 15... dxe5 {[%clk
0:01:45.3]} 16. dxe5 {[%clk 0:02:31.8]} 16... Nd5 {[%clk 0:01:30.3]} 17. e6
{[%clk 0:02:27.8]} 17... fxe6 {[%clk 0:01:27.8]} 18. Nd4 {[%clk 0:02:17.7]}
18... Bxd4 {[%clk 0:01:18.8]} 19. cxd4 {[%clk 0:01:55.8]} 19... N7f6 {[%clk
0:01:14.9]} 20. Bh6 {[%clk 0:01:51.7]} 20... Nb4 {[%clk 0:01:09]} 21. Rc1 {[%clk
0:01:31.9]} 21... Kf7 {[%clk 0:01:01.7]} 22. Re1 {[%clk 0:01:26.4]} 22... Nd3
{[%clk 0:00:49.5]} 23. Rxc4 {[%clk 0:00:58.4]} 23... Qd5 {[%clk 0:00:42.8]} 24.
Bf3 {[%clk 0:00:46.6]} 24... Qxc4 {[%clk 0:00:42.8]} 25. Bxb7 {[%clk 0:00:45.7]}
25... Nxe1 {[%clk 0:00:42.8]} 26. Bxc8 {[%clk 0:00:41.9]} 26... Nd3 {[%clk
0:00:35.4]} 27. Bb7 {[%clk 0:00:36.7]} 27... Qc2 {[%clk 0:00:32.4]} 28. Qe3
{[%clk 0:00:25.9]} 28... Rb8 {[%clk 0:00:20.7]} 29. Be4 {[%clk 0:00:23.3]} 29...
Nxe4 {[%clk 0:00:19.8]} 30. Nxe4 {[%clk 0:00:24.2]} 30... Qd1+ {[%clk
0:00:19.4]} 31. Qe1 {[%clk 0:00:23.3]} 31... Qxe1# {[%clk 0:00:20]} 0-1

[Event "Early-Titled-Tuesday-Blitz-February-06-2024"]
[Site "Chess.com"]
[Date "2024.02.06"]
[Round "5"]
[White "DinaBelenkaya"]
[Black "HalfIsCrayfish"]
[Result "1-0"]
[WhiteElo "2439"]
[BlackElo "2570"]
[TimeControl "180+1"]
[EndTime "8:54:50 PST"]
[Termination "DinaBelenkaya won by resignation"]

1. Nf3 {[%clk 0:03:00.9]} 1... c5 {[%clk 0:02:35.6]} 2. g3 {[%clk 0:02:45.2]}
2... Nc6 {[%clk 0:02:35.1]} 3. Bg2 {[%clk 0:02:40.1]} 3... e5 {[%clk 0:02:35.4]}
4. d3 {[%clk 0:02:37.3]} 4... g6 {[%clk 0:02:35.5]} 5. e4 {[%clk 0:02:36.3]}
5... Bg7 {[%clk 0:02:35.6]} 6. Nc3 {[%clk 0:02:34.7]} 6... Nge7 {[%clk
0:02:35.9]} 7. Nd2 {[%clk 0:02:33.6]} 7... O-O {[%clk 0:02:35.9]} 8. O-O {[%clk
0:02:33.5]} 8... d6 {[%clk 0:02:34.7]} 9. Nc4 {[%clk 0:02:32.1]} 9... f5 {[%clk
0:02:22.8]} 10. exf5 {[%clk 0:01:59.3]} 10... Bxf5 {[%clk 0:02:20.9]} 11. Bg5
{[%clk 0:01:54.1]} 11... h6 {[%clk 0:02:16.4]} 12. Bxe7 {[%clk 0:01:45.7]} 12...
Qxe7 {[%clk 0:02:14.7]} 13. Nd5 {[%clk 0:01:42.6]} 13... Qd7 {[%clk 0:02:12.8]}
14. Qd2 {[%clk 0:01:30.2]} 14... Rae8 {[%clk 0:02:06.7]} 15. c3 {[%clk
0:01:27.4]} 15... b5 {[%clk 0:01:51.5]} 16. Nce3 {[%clk 0:01:25.3]} 16... Bh3
{[%clk 0:01:51.7]} 17. a4 {[%clk 0:01:18.2]} 17... Bxg2 {[%clk 0:01:39.5]} 18.
Kxg2 {[%clk 0:01:18.3]} 18... a6 {[%clk 0:01:39.7]} 19. axb5 {[%clk 0:01:17.5]}
19... axb5 {[%clk 0:01:40.6]} 20. Ra6 {[%clk 0:01:17.2]} 20... Ne7 {[%clk
0:01:34.8]} 21. Rfa1 {[%clk 0:01:13.3]} 21... Nxd5 {[%clk 0:01:24]} 22. Nxd5
{[%clk 0:01:11.4]} 22... e4 {[%clk 0:00:44.4]} 23. dxe4 {[%clk 0:01:04.8]} 23...
Rxe4 {[%clk 0:00:44.1]} 24. Ne3 {[%clk 0:00:58.7]} 24... Re6 {[%clk 0:00:33.8]}
25. Qd5 {[%clk 0:00:56.4]} 25... Re8 {[%clk 0:00:02]} 26. Ra7 {[%clk 0:00:54.2]}
26... Qd8 {[%clk 0:00:02.1]} 27. Ra8 {[%clk 0:00:46.2]} 27... Qe7 {[%clk
0:00:02.4]} 28. R1a7 {[%clk 0:00:44.5]} 28... Qf8 {[%clk 0:00:01.8]} 29. Rxe8
{[%clk 0:00:32.6]} 29... Qxe8 {[%clk 0:00:02.7]} 30. Ra8 {[%clk 0:00:32.8]} 1-0

[Event "Early-Titled-Tuesday-Blitz-February-06-2024"]
[Site "Chess.com"]
[Date "2024.02.06"]
[Round "5"]
[White "tandaleo"]
[Black "DarkAlekhine"]
[Result "1-0"]
[WhiteElo "2552"]
[BlackElo "2744"]
[TimeControl "180+1"]
[EndTime "8:54:53 PST"]
[Termination "tandaleo won by resignation"]

1. d4 {[%clk 0:03:00.5]} 1... Nf6 {[%clk 0:02:59.9]} 2. Nf3 {[%clk 0:03:00.8]}
2... e6 {[%clk 0:03:00.3]} 3. c4 {[%clk 0:03:01]} 3... b6 {[%clk 0:03:00.9]} 4.
g3 {[%clk 0:03:00.9]} 4... Ba6 {[%clk 0:03:00.2]} 5. Nbd2 {[%clk 0:03:00.8]}
5... Bb7 {[%clk 0:02:58.6]} 6. Bg2 {[%clk 0:03:00.2]} 6... c5 {[%clk 0:02:59.2]}
7. e4 {[%clk 0:02:45.9]} 7... cxd4 {[%clk 0:02:57.8]} 8. e5 {[%clk 0:02:45.4]}
8... Ng4 {[%clk 0:02:49.8]} 9. O-O {[%clk 0:02:45.7]} 9... Nc6 {[%clk
0:02:49.4]} 10. Re1 {[%clk 0:02:45.8]} 10... Qb8 {[%clk 0:02:44.9]} 11. h3
{[%clk 0:02:33.2]} 11... Nh6 {[%clk 0:02:42.7]} 12. g4 {[%clk 0:02:13]} 12... d3
{[%clk 0:01:39.8]} 13. Ne4 {[%clk 0:01:15.5]} 13... Nb4 {[%clk 0:00:30.8]} 14.
Bxh6 {[%clk 0:00:59.3]} 14... Bxe4 {[%clk 0:00:30]} 15. Rxe4 {[%clk 0:00:52.1]}
15... gxh6 {[%clk 0:00:30]} 16. a3 {[%clk 0:00:50.6]} 16... Nc6 {[%clk
0:00:22.6]} 17. Qxd3 {[%clk 0:00:50.6]} 17... Bg7 {[%clk 0:00:21.9]} 18. Rae1
{[%clk 0:00:46.7]} 18... O-O {[%clk 0:00:21.3]} 19. g5 {[%clk 0:00:46.5]} 19...
h5 {[%clk 0:00:16.9]} 20. Rh4 {[%clk 0:00:44.6]} 20... Rd8 {[%clk 0:00:14.6]}
21. Rxh5 {[%clk 0:00:44.8]} 21... d5 {[%clk 0:00:08.3]} 22. Qxh7+ {[%clk
0:00:37.2]} 22... Kf8 {[%clk 0:00:08.7]} 23. g6 {[%clk 0:00:37.9]} 23... dxc4
{[%clk 0:00:04.8]} 24. gxf7 {[%clk 0:00:36.2]} 24... Kxf7 {[%clk 0:00:02.1]} 25.
Ng5+ {[%clk 0:00:35]} 25... Ke8 {[%clk 0:00:03]} 26. Qxg7 {[%clk 0:00:33.6]}
26... Ne7 {[%clk 0:00:03.7]} 1-0

[Event "Early-Titled-Tuesday-Blitz-February-06-2024"]
[Site "Chess.com"]
[Date "2024.02.06"]
[Round "5"]
[White "Adar_07"]
[Black "GMCorinnaKopff"]
[Result "1/2-1/2"]
[WhiteElo "2719"]
[BlackElo "2381"]
[TimeControl "180+1"]
[EndTime "8:54:57 PST"]
[Termination "Game drawn by repetition"]

1. e4 {[%clk 0:03:00.9]} 1... c5 {[%clk 0:02:58.7]} 2. Nf3 {[%clk 0:02:59.9]}
2... Nc6 {[%clk 0:02:58.7]} 3. d4 {[%clk 0:02:57.5]} 3... cxd4 {[%clk
0:02:59.6]} 4. Nxd4 {[%clk 0:02:55.8]} 4... Nf6 {[%clk 0:02:54.4]} 5. Nc3 {[%clk
0:02:55.4]} 5... e5 {[%clk 0:02:52.7]} 6. Ndb5 {[%clk 0:02:55.4]} 6... d6 {[%clk
0:02:52.4]} 7. Bg5 {[%clk 0:02:55.5]} 7... a6 {[%clk 0:02:52.7]} 8. Na3 {[%clk
0:02:52.3]} 8... b5 {[%clk 0:02:53.1]} 9. Bxf6 {[%clk 0:02:50.5]} 9... gxf6
{[%clk 0:02:54]} 10. Nd5 {[%clk 0:02:50.4]} 10... f5 {[%clk 0:02:54.5]} 11. exf5
{[%clk 0:02:49.9]} 11... Bxf5 {[%clk 0:02:53.8]} 12. c3 {[%clk 0:02:50.6]} 12...
Bg7 {[%clk 0:02:53.1]} 13. Nc2 {[%clk 0:02:50.5]} 13... O-O {[%clk 0:02:51.8]}
14. a4 {[%clk 0:02:50.4]} 14... bxa4 {[%clk 0:02:50.4]} 15. Rxa4 {[%clk
0:02:51.3]} 15... a5 {[%clk 0:02:44.1]} 16. Nce3 {[%clk 0:02:42.4]} 16... Be6
{[%clk 0:02:43.5]} 17. g3 {[%clk 0:02:41]} 17... f5 {[%clk 0:02:36.3]} 18. Bg2
{[%clk 0:02:39.7]} 18... Rb8 {[%clk 0:02:19.2]} 19. b3 {[%clk 0:02:22.2]} 19...
Ne7 {[%clk 0:02:12.3]} 20. O-O {[%clk 0:02:18.8]} 20... e4 {[%clk 0:02:09.6]}
21. Nxe7+ {[%clk 0:02:07.1]} 21... Qxe7 {[%clk 0:02:10.5]} 22. Nd5 {[%clk
0:02:07.4]} 22... Qb7 {[%clk 0:01:56.9]} 23. Rxa5 {[%clk 0:02:03.3]} 23... Qxb3
{[%clk 0:01:55.3]} 24. Ne7+ {[%clk 0:02:03.4]} 24... Kh8 {[%clk 0:01:53.7]} 25.
Qxd6 {[%clk 0:02:02.8]} 25... Rbd8 {[%clk 0:01:26.3]} 26. Qf4 {[%clk 0:01:34.8]}
26... Qxc3 {[%clk 0:01:20.4]} 27. Ra6 {[%clk 0:01:25.2]} 27... Bc4 {[%clk
0:00:56.6]} 28. Rc6 {[%clk 0:01:04.4]} 28... Qd4 {[%clk 0:00:38]} 29. Qh4 {[%clk
0:00:17.4]} 29... Bxf1 {[%clk 0:00:32.5]} 30. Ng6+ {[%clk 0:00:08]} 30... Kg8
{[%clk 0:00:31.2]} 31. Ne7+ {[%clk 0:00:08.3]} 31... Kh8 {[%clk 0:00:28.8]} 32.
Ng6+ {[%clk 0:00:08.3]} 32... Kg8 {[%clk 0:00:29.3]} 33. Ne7+ {[%clk 0:00:09.2]}
33... Kh8 {[%clk 0:00:28.5]} 1/2-1/2

[Event "Early-Titled-Tuesday-Blitz-February-06-2024"]
[Site "Chess.com"]
[Date "2024.02.06"]
[Round "5"]
[White "Ati1517"]
[Black "zsoltkorpics"]
[Result "0-1"]
[WhiteElo "2251"]
[BlackElo "2472"]
[TimeControl "180+1"]
[EndTime "8:54:57 PST"]
[Termination "zsoltkorpics won by checkmate"]

1. e4 {[%clk 0:02:50.5]} 1... c5 {[%clk 0:03:00.1]} 2. Nf3 {[%clk 0:02:50.5]}
2... e6 {[%clk 0:03:00.6]} 3. d4 {[%clk 0:02:51.1]} 3... cxd4 {[%clk 0:03:01.5]}
4. Nxd4 {[%clk 0:02:51.7]} 4... Nc6 {[%clk 0:03:02.2]} 5. Nc3 {[%clk 0:02:51.5]}
5... Qc7 {[%clk 0:03:02.7]} 6. Be3 {[%clk 0:02:51.9]} 6... a6 {[%clk 0:03:03.2]}
7. Bc4 {[%clk 0:02:51.5]} 7... Nf6 {[%clk 0:02:55.1]} 8. f3 {[%clk 0:02:49.4]}
8... Bb4 {[%clk 0:02:45.4]} 9. O-O {[%clk 0:02:49]} 9... Ne5 {[%clk 0:02:38]}
10. Bb3 {[%clk 0:02:43.4]} 10... Bxc3 {[%clk 0:02:17.8]} 11. bxc3 {[%clk
0:02:42.5]} 11... Qxc3 {[%clk 0:02:18.7]} 12. Bf4 {[%clk 0:02:42.7]} 12... Ng6
{[%clk 0:02:11.7]} 13. Bd6 {[%clk 0:02:42.3]} 13... b5 {[%clk 0:01:58.8]} 14. e5
{[%clk 0:02:41.7]} 14... Ng8 {[%clk 0:01:52.4]} 15. f4 {[%clk 0:02:34.4]} 15...
Bb7 {[%clk 0:01:40.9]} 16. f5 {[%clk 0:02:28.8]} 16... Nh4 {[%clk 0:01:37.1]}
17. fxe6 {[%clk 0:01:50.6]} 17... Qe3+ {[%clk 0:01:31.1]} 18. Rf2 {[%clk
0:01:50.9]} 18... dxe6 {[%clk 0:01:31.4]} 19. Qg4 {[%clk 0:01:43.2]} 19... Nxg2
{[%clk 0:00:55.8]} 20. Qxg7 {[%clk 0:00:59.1]} 20... O-O-O {[%clk 0:00:53.3]}
21. Nxe6 {[%clk 0:00:49.5]} 21... Nf4 {[%clk 0:00:50]} 22. Nxf4 {[%clk
0:00:42.3]} 22... Nh6 {[%clk 0:00:43.7]} 23. Qxh6 {[%clk 0:00:20.5]} 23... Rhg8+
{[%clk 0:00:42.2]} 24. Kf1 {[%clk 0:00:20.9]} 24... Qe4 {[%clk 0:00:31.9]} 25.
Be6+ {[%clk 0:00:20.5]} 25... fxe6 {[%clk 0:00:23.8]} 26. Qxe6+ {[%clk
0:00:20.4]} 26... Rd7 {[%clk 0:00:24.5]} 27. Qxg8+ {[%clk 0:00:20.5]} 27... Rd8
{[%clk 0:00:25.2]} 28. Qg4+ {[%clk 0:00:20.5]} 28... Rd7 {[%clk 0:00:25.5]} 29.
Ng2 {[%clk 0:00:15.2]} 29... Qxg4 {[%clk 0:00:24]} 30. Rf8+ {[%clk 0:00:14.2]}
30... Rd8 {[%clk 0:00:24.2]} 31. Rxd8+ {[%clk 0:00:14.5]} 31... Kxd8 {[%clk
0:00:25.1]} 32. Re1 {[%clk 0:00:12.9]} 32... Qxg2# {[%clk 0:00:24.6]} 0-1

[Event "Early-Titled-Tuesday-Blitz-February-06-2024"]
[Site "Chess.com"]
[Date "2024.02.06"]
[Round "5"]
[White "Laico"]
[Black "miraitrunks"]
[Result "0-1"]
[WhiteElo "2367"]
[BlackElo "2148"]
[TimeControl "180+1"]
[EndTime "8:54:57 PST"]
[Termination "miraitrunks won by resignation"]

1. e4 {[%clk 0:02:56.3]} 1... c5 {[%clk 0:02:59.8]} 2. Nc3 {[%clk 0:02:56.3]}
2... Nc6 {[%clk 0:03:00.4]} 3. f4 {[%clk 0:02:56.9]} 3... g6 {[%clk 0:03:00.3]}
4. Nf3 {[%clk 0:02:57.6]} 4... Bg7 {[%clk 0:03:00.6]} 5. Bb5 {[%clk 0:02:58.3]}
5... Nd4 {[%clk 0:03:00.3]} 6. O-O {[%clk 0:02:59]} 6... Nxb5 {[%clk 0:03:00.1]}
7. Nxb5 {[%clk 0:02:59.9]} 7... a6 {[%clk 0:03:00.3]} 8. Nc3 {[%clk 0:03:00.2]}
8... b5 {[%clk 0:03:01]} 9. d3 {[%clk 0:03:00.6]} 9... b4 {[%clk 0:03:00.9]} 10.
Na4 {[%clk 0:02:57.7]} 10... Qa5 {[%clk 0:02:56.8]} 11. c4 {[%clk 0:02:57.2]}
11... d6 {[%clk 0:02:52.9]} 12. Rb1 {[%clk 0:02:52.7]} 12... Bd7 {[%clk
0:02:49.9]} 13. b3 {[%clk 0:02:53.1]} 13... Bxa4 {[%clk 0:02:48.9]} 14. bxa4
{[%clk 0:02:54]} 14... Nf6 {[%clk 0:02:47.4]} 15. Bb2 {[%clk 0:02:48]} 15... O-O
{[%clk 0:02:46.6]} 16. Kh1 {[%clk 0:02:48.3]} 16... Ng4 {[%clk 0:02:37]} 17.
Bxg7 {[%clk 0:02:47.7]} 17... Kxg7 {[%clk 0:02:37.9]} 18. Qb3 {[%clk 0:02:31.6]}
18... Nf6 {[%clk 0:02:30.1]} 19. e5 {[%clk 0:02:24.3]} 19... Nd7 {[%clk
0:02:29.1]} 20. Rbe1 {[%clk 0:02:11.2]} 20... Nb6 {[%clk 0:02:26.1]} 21. e6
{[%clk 0:02:11.5]} 21... f6 {[%clk 0:02:25.3]} 22. f5 {[%clk 0:02:04.7]} 22...
Nxa4 {[%clk 0:02:24.3]} 23. Re4 {[%clk 0:01:59.1]} 23... Nc3 {[%clk 0:02:24.3]}
24. Rf2 {[%clk 0:01:29.7]} 24... Nxe4 {[%clk 0:02:22.7]} 25. dxe4 {[%clk
0:01:30.6]} 25... Qa3 {[%clk 0:02:15.5]} 26. Qc2 {[%clk 0:01:25.5]} 26... Rab8
{[%clk 0:02:14.8]} 27. Nd2 {[%clk 0:01:23.2]} 27... Qc3 {[%clk 0:02:05.1]} 28.
Qd1 {[%clk 0:01:21.8]} 28... a5 {[%clk 0:02:03.7]} 29. Rf3 {[%clk 0:01:21.7]}
29... Qd4 {[%clk 0:02:03.9]} 30. Rg3 {[%clk 0:01:12.1]} 30... a4 {[%clk
0:02:01.1]} 31. h4 {[%clk 0:00:55.1]} 31... b3 {[%clk 0:02:00.2]} 32. axb3
{[%clk 0:00:55.2]} 32... a3 {[%clk 0:02:00.6]} 33. Qh5 {[%clk 0:00:46.1]} 33...
Qxd2 {[%clk 0:01:25]} 34. Rxg6+ {[%clk 0:00:21.9]} 34... Kh8 {[%clk 0:00:42.1]}
35. Rg7 {[%clk 0:00:19.3]} 35... Kxg7 {[%clk 0:00:36.8]} 0-1

[Event "Early-Titled-Tuesday-Blitz-February-06-2024"]
[Site "Chess.com"]
[Date "2024.02.06"]
[Round "5"]
[White "azikom"]
[Black "ural58"]
[Result "1-0"]
[WhiteElo "2705"]
[BlackElo "2482"]
[TimeControl "180+1"]
[EndTime "8:54:59 PST"]
[Termination "azikom won by resignation"]

1. c4 {[%clk 0:03:00.6]} 1... e5 {[%clk 0:02:57.6]} 2. Nc3 {[%clk 0:03:00.4]}
2... Nf6 {[%clk 0:02:56.9]} 3. e3 {[%clk 0:03:00.5]} 3... c6 {[%clk 0:02:54]} 4.
d4 {[%clk 0:03:00]} 4... exd4 {[%clk 0:02:53.5]} 5. Qxd4 {[%clk 0:03:00.4]} 5...
d5 {[%clk 0:02:53.6]} 6. Nf3 {[%clk 0:03:00.1]} 6... Bb4 {[%clk 0:02:49.8]} 7.
Bd2 {[%clk 0:02:57.7]} 7... O-O {[%clk 0:02:48.1]} 8. cxd5 {[%clk 0:02:56.9]}
8... Nxd5 {[%clk 0:02:47.1]} 9. Nxd5 {[%clk 0:02:56.1]} 9... Bxd2+ {[%clk
0:02:46.3]} 10. Qxd2 {[%clk 0:02:56.7]} 10... cxd5 {[%clk 0:02:45.4]} 11. Be2
{[%clk 0:02:56.4]} 11... Nc6 {[%clk 0:02:38.6]} 12. O-O {[%clk 0:02:56.4]} 12...
Be6 {[%clk 0:02:38.5]} 13. Rfd1 {[%clk 0:02:56.4]} 13... Qb6 {[%clk 0:02:34.4]}
14. a3 {[%clk 0:02:52.9]} 14... a5 {[%clk 0:02:33.5]} 15. Rac1 {[%clk
0:02:52.3]} 15... h6 {[%clk 0:02:33]} 16. Nd4 {[%clk 0:02:51.2]} 16... Rfd8
{[%clk 0:02:31.2]} 17. h3 {[%clk 0:02:47.7]} 17... Ne5 {[%clk 0:02:30.6]} 18.
Rc2 {[%clk 0:02:40.8]} 18... Rac8 {[%clk 0:02:29.9]} 19. Rdc1 {[%clk 0:02:40.3]}
19... Rxc2 {[%clk 0:02:29.7]} 20. Rxc2 {[%clk 0:02:40]} 20... Nc4 {[%clk
0:02:09.7]} 21. Qc1 {[%clk 0:02:36.7]} 21... Nd6 {[%clk 0:02:03.6]} 22. Bd3
{[%clk 0:02:32.4]} 22... Bd7 {[%clk 0:01:48.7]} 23. Rc5 {[%clk 0:02:28.4]} 23...
Be6 {[%clk 0:01:35.2]} 24. Qc3 {[%clk 0:02:26.8]} 24... Ra8 {[%clk 0:01:23.8]}
25. Nxe6 {[%clk 0:02:12.2]} 25... fxe6 {[%clk 0:01:23.2]} 26. Rc7 {[%clk
0:02:12]} 26... Ne8 {[%clk 0:01:16.7]} 27. Rc8 {[%clk 0:01:56.8]} 27... Rxc8
{[%clk 0:01:16.1]} 28. Qxc8 {[%clk 0:01:56.4]} 28... Qc6 {[%clk 0:01:16.7]} 29.
Qa8 {[%clk 0:01:51.4]} 29... Kf7 {[%clk 0:01:15.3]} 30. Bf1 {[%clk 0:01:32.4]}
30... Qb6 {[%clk 0:01:12.8]} 31. a4 {[%clk 0:01:25.7]} 31... Nf6 {[%clk
0:01:00]} 32. Bb5 {[%clk 0:01:22.3]} 32... Qc7 {[%clk 0:00:56.4]} 33. g3 {[%clk
0:01:17.8]} 33... h5 {[%clk 0:00:55.8]} 34. Kg2 {[%clk 0:01:14.7]} 34... h4
{[%clk 0:00:55.6]} 35. gxh4 {[%clk 0:01:13.4]} 35... e5 {[%clk 0:00:47.7]} 36.
b3 {[%clk 0:00:58.9]} 36... d4 {[%clk 0:00:47.3]} 37. Bc4+ {[%clk 0:00:57.3]}
37... Kg6 {[%clk 0:00:46.4]} 38. exd4 {[%clk 0:00:44.4]} 38... exd4 {[%clk
0:00:46.2]} 39. Bd3+ {[%clk 0:00:43.9]} 39... Kf7 {[%clk 0:00:44.7]} 40. Qa7
{[%clk 0:00:41.3]} 40... Qc6+ {[%clk 0:00:36.1]} 41. Kg1 {[%clk 0:00:34.5]}
41... Qd5 {[%clk 0:00:36.2]} 42. Bc4 {[%clk 0:00:32]} 1-0